Workbook

Sheet Template
C1: FIXED ROUTES FIXED ROUTES FIXED ROUTES FIXED ROUTES FIXED ROUTES FIXED ROUTES | AC1: PARATRANSIT ROUTE(S) PARATRANSIT ROUTE(S) PARATRANSIT ROUTE(S) PARATRANSIT ROUTE(S)
A2: Date | B2: Day | C2: Conroe Connection Tickets | D2: Senior Ride Tickets | E2: $1.00 Adults | F2: $.50 Riders | G2: $.50 ADA Riders | H2: Children Under 6 | I2: Transfer Slips | J2: Employee/City Badge/EMS | K2: Service Animals | L2: Ramp Used | M2: Total FR Riders | N2: Expected Monies FR | O2: 1473 Amt. | P2: 1474 Amt. | Q2: 1475 Amt. | R2: 1476 Amt. | S2: 1603 Amt. | T2: 1604 Amt. | U2: Spare Amt. | V2: Total Collected FR | W2: Difference | X2: Overage / Shortage | Y2: Justification | Z2: Total FR Trips | AA2: Late FR Trips | AB2: OTP | AC2: Date | AD2: Day | AE2: $2.00 Paratransit Clients | AF2: $2.00 Companions | AG2: Personal Care Attendants | AH2: Service Animals | AI2: Total Para Riders | AJ2: Expected Monies Para | AK2: 1473 Amt. | AL2: 1474 Amt. | AM2: 1475 Amt. | AN2: 1476 Amt. | AO2: 1603 Amt. | AP2: 1604 Amt. | AQ2: Spare Amt. | AR2: Currency Collected | AS2: ADA Green Tickets | AT2: ADA White Tickets | AU2: Senior Rides Tickets | AV2: Conroe Connection Ticket "Fare" | AW2: Senior Rides Ticket "Fare" | AX2: Total Fare Collected | AY2: Difference | AZ2: Overage / Shortage | BA2: Justification | BB2: Total Para Trips | BC2: Late Para Trips | BD2: OTP | BE2: Total Weekly Riders
A3: 2017-04-03 | B3: Monday | C3: 6 | E3: 34 | F3: 16 | G3: 8 | I3: 21 | L3: 20 | M3: =C3+D3+E3+F3+G3+H3+I3+J3 -> 85 | N3: =E3*1+F3*0.5+G3*0.5 -> $46.00 | P3: $21.03 | R3: $25.75 | S3: =IF($M3>0, " ", ) ->  | V3: =SUM(O3:U3) -> $46.78 | W3: =V3-N3 -> $0.78 | X3: =IF(W3>0, "Overage", IF(W3<0, "Shortage", "")) -> Overage | Z3: =2*12*5 -> 120 | AA3: 0 | AB3: =IF(Z3=0, 1, (Z3-AA3)/Z3) -> 100.00% | AC3: =A3 -> 2017-04-03 | AD3: =B3 -> Monday | AE3: 18 | AI3: =AE3+AF3+AG3 -> 18 | AJ3: =AE3*2+AF3*2 -> $36.00 | AK3: =IF($AI3>0, " ", ) ->  | AL3: =IF($AI3>0, " ", ) ->  | AP3: $30.00 | AR3: =SUM(AK3:AQ3) -> $30.00 | AV3: =(AS3+AT3)*2 -> $0.00 | AW3: =AU3*2 -> $0.00 | AX3: =AR3+AV3 -> $30.00 | AY3: =AX3-AJ3 -> ($6.00) | AZ3: =IF(AY3>0, "Overage", IF(AY3<0, "Shortage", "")) -> Shortage | BB3: 18 | BC3: 0 | BD3: =IF(BB3=0, 1, (BB3-BC3)/BB3) -> 100.00% | BE3: =M3+AI3 -> 103
A4: 2017-04-04 | B4: Tuesday | C4: 7 | E4: 56 | F4: 13 | H4: 9 | I4: 28 | L4: 16 | M4: 113 | N4: $62.50 | P4: $41.75 | R4: $21.00 | S4: =IF($M4>0, " ", ) ->  | V4: $62.75 | W4: =V4-N4 -> $0.25 | X4: =IF(W4>0, "Overage", IF(W4<0, "Shortage", "")) -> Overage | Z4: =2*12*5 -> 120 | AA4: 0 | AB4: 100.00% | AC4: =A4 -> 2017-04-04 | AD4: =B4 -> Tuesday | AE4: 17 | AI4: 17 | AJ4: $34.00 | AK4: =IF($AI4>0, " ", ) ->  | AP4: $26.00 | AR4: $26.00 | AS4: 2 | AT4: 2 | AV4: =(AS4+AT4)*2 -> $8.00 | AW4: =AU4*2 -> $0.00 | AX4: =AR4+AV4+AW4 -> $34.00 | AY4: $0.00 | AZ4: =IF(AY4>0, "Overage", IF(AY4<0, "Shortage", "")) ->  | BB4: 17 | BC4: 0 | BD4: 100.00% | BE4: =BE3+M4+AI4 -> 233
A5: 2017-04-05 | B5: Wednesday | C5: 2 | E5: 55 | F5: 14 | H5: 14 | I5: 22 | L5: 3 | M5: 107 | N5: $62.00 | P5: $18.71 | R5: $43.75 | V5: $62.46 | W5: =V5-N5 -> $0.46 | X5: Overage | Z5: 120 | AA5: 0 | AB5: 100.00% | AC5: 2017-04-05 | AD5: Wednesday | AE5: 16 | AI5: 16 | AJ5: $32.00 | AK5: =IF($AI5>0, " ", ) ->  | AP5: $20.00 | AR5: $20.00 | AS5: 1 | AV5: $2.00 | AW5: $0.00 | AX5: $22.00 | AY5: ($10.00) | AZ5: Shortage | BB5: 16 | BC5: 0 | BD5: 100.00% | BE5: 356
A6: 2017-04-06 | B6: Thursday | C6: 1 | E6: 47 | F6: 14 | G6: 3 | H6: 7 | I6: 19 | L6: 21 | M6: 91 | N6: $55.50 | P6: $35.59 | R6: $10.00 | S6: =IF($M6>0, " ", ) ->  | V6: $45.59 | W6: ($9.91) | X6: =IF(W6>0, "Overage", IF(W6<0, "Shortage", "")) -> Shortage | Y6: Driver Miss Count of riders | Z6: 120 | AA6: 0 | AB6: 100.00% | AC6: 2017-04-06 | AD6: Thursday | AE6: 13 | AI6: 13 | AJ6: $26.00 | AP6: $24.00 | AR6: $24.00 | AT6: 2 | AV6: $4.00 | AW6: $0.00 | AX6: $28.00 | AY6: $2.00 | AZ6: Overage | BB6: 13 | BC6: 0 | BD6: 100.00% | BE6: 460
A7: 2017-04-07 | B7: Friday | C7: 6 | E7: 33 | F7: 14 | G7: 4 | H7: 9 | I7: 11 | L7: 14 | M7: 77 | N7: $42.00 | P7: $11.35 | R7: $35.50 | V7: $46.85 | W7: $4.85 | X7: =IF(W7>0, "Overage", IF(W7<0, "Shortage", "")) -> Overage | Z7: 120 | AA7: 0 | AB7: 100.00% | AC7: 2017-04-07 | AD7: Friday | AE7: 15 | AI7: 15 | AJ7: $30.00 | AP7: $20.00 | AR7: $20.00 | AS7: 4 | AV7: $8.00 | AW7: $0.00 | AX7: $28.00 | AY7: ($2.00) | AZ7: Shortage | BB7: 15 | BC7: 0 | BD7: 100.00% | BE7: =BE6+M7+AI7 -> 552
A8: 2017-04-10 | B8: Monday | C8: 2 | E8: 50 | F8: 10 | G8: 1 | H8: 11 | I8: 12 | L8: 6 | M8: =C8+D8+E8+F8+G8+H8+I8+J8 -> 86 | N8: =E8*1+F8*0.5+G8*0.5 -> $55.50 | P8: $30.96 | R8: $22.75 | V8: =SUM(O8:U8) -> $53.71 | W8: =V8-N8 -> ($1.79) | X8: =IF(W8>0, "Overage", IF(W8<0, "Shortage", "")) -> Shortage | Y8: Passanger short Driping Change | Z8: 120 | AA8: 0 | AC8: 2017-04-10 | AD8: Monday | AE8: 13 | AI8: 12 | AJ8: $26.00 | AO8: $12.00 | AP8: $10.00 | AR8: $22.00 | AS8: 1 | AV8: $2.00 | AX8: $24.00 | AY8: ($2.00) | AZ8: Shortage | BB8: 13 | BC8: 0 | BD8: 100.00% | BE8: 99
A9: 2017-04-11 | B9: Tuesday | C9: 4 | E9: 31 | F9: 10 | G9: 2 | H9: 1 | I9: 12 | L9: 13 | M9: 60 | N9: $37.00 | P9: $19.35 | Q9: $20.01 | V9: $39.36 | W9: $2.36 | X9: Overage | Z9: 120 | AA9: 0 | AB9: 100.00% | AC9: 2017-04-11 | AD9: Tuesday | AE9: 10 | AI9: 10 | AJ9: $20.00 | AP9: $14.00 | AR9: $14.00 | AT9: 3 | AV9: $6.00 | AW9: $0.00 | AX9: $20.00 | AY9: $0.00 | BB9: 10 | BC9: 0 | BD9: 100.00% | BE9: 169
A10: 2017-04-12 | B10: Wednesday | C10: 4 | E10: 42 | F10: 11 | G10: 3 | H10: 9 | I10: 16 | M10: 85 | N10: $49.00 | P10: $32.25 | R10: $17.00 | V10: $49.25 | W10: $0.25 | X10: Overage | Z10: 120 | AA10: 0 | AB10: 100.00% | AC10: 2017-04-12 | AD10: Wednesday | AE10: 11 | AF10: 1 | AI10: 12 | AJ10: $24.00 | AO10: $6.00 | AP10: $12.00 | AR10: $18.00 | AS10: 4 | AV10: $8.00 | AW10: $0.00 | AX10: $26.00 | AY10: $2.00 | AZ10: Overage | BB10: 11 | BC10: 0 | BD10: 100.00% | BE10: =BE9+M10+AI10 -> 266
A11: 2017-04-13 | B11: Thursday | C11: 4 | E11: 34 | F11: 12 | G11: 2 | H11: 3 | I11: 24 | M11: =C11+D11+E11+F11+G11+H11+I11+J11 -> 79 | N11: $41.00 | P11: $20.00 | R11: $23.00 | V11: =SUM(O11:U11) -> $43.00 | W11: $2.00 | X11: =IF(W11>0, "Overage", IF(W11<0, "Shortage", "")) -> Overage | Z11: 120 | AA11: 0 | AB11: 100.00% | AC11: 2017-04-13 | AD11: Thursday | AE11: 11 | AI11: 11 | AJ11: $22.00 | AO11: $2.00 | AP11: $14.00 | AR11: =SUM(AK11:AQ11) -> $16.00 | AT11: 3 | AV11: $6.00 | AW11: $0.00 | AX11: $22.00 | AY11: $0.00 | BB11: 11 | BC11: 0 | BD11: 100.00% | BE11: 356
A12: 2017-04-14 | B12: Friday | E12: 28 | F12: 17 | G12: 1 | H12: 5 | I12: 15 | L12: 8 | M12: 66 | N12: $37.00 | O12: $13.25 | P12: $26.34 | V12: $39.59 | W12: $2.59 | X12: Overage | Z12: 120 | AA12: 0 | AB12: 100.00% | AC12: 2017-04-14 | AD12: Friday | AE12: 8 | AI12: 8 | AJ12: $16.00 | AO12: $4.00 | AP12: $2.00 | AR12: $6.00 | AS12: 4 | AT12: 2 | AV12: $12.00 | AW12: $0.00 | AX12: $18.00 | AY12: $2.00 | AZ12: Overage | BB12: 8 | BC12: 0 | BD12: 100.00% | BE12: 430
A13: 2017-04-17 | B13: Monday | C13: 10 | E13: 44 | F13: 14 | G13: 3 | H13: 10 | I13: 24 | L13: 19 | M13: 105 | N13: $52.50 | O13: $29.50 | P13: $22.58 | V13: $52.08 | W13: ($0.42) | X13: Shortage | Y13: Passanger short Driping Change | Z13: 120 | AA13: 0 | AB13: 100.00% | AC13: 2017-04-17 | AD13: Monday | AE13: 7 | AI13: 7 | AJ13: $14.00 | AO13: $4.00 | AP13: $6.00 | AR13: $10.00 | AT13: 3 | AV13: $6.00 | AW13: $0.00 | AX13: $16.00 | AY13: $2.00 | AZ13: Overage | BB13: 7 | BC13: 0 | BD13: 100.00% | BE13: =M13+AI13 -> 112
A14: 2017-04-18 | B14: Tuesday | C14: 2 | E14: 17 | F14: 7 | G14: 1 | H14: 1 | I14: 14 | J14: 1 | L14: 4 | M14: 43 | N14: $21.00 | O14: $8.50 | P14: $13.80 | V14: $22.30 | W14: $1.30 | X14: Overage | Z14: 120 | AA14: 0 | AB14: 100.00% | AC14: 2017-04-18 | AD14: Tuesday | AE14: 10 | AI14: 10 | AJ14: $20.00 | AO14: $2.00 | AP14: $12.00 | AR14: $14.00 | AS14: 2 | AT14: 2 | AV14: $8.00 | AW14: $0.00 | AX14: $22.00 | AY14: $2.00 | AZ14: Overage | BB14: 10 | BC14: 0 | BD14: 100.00% | BE14: 165
A15: 2017-04-19 | B15: Wednesday | C15: 9 | E15: 51 | F15: 11 | G15: 2 | H15: 11 | I15: 19 | L15: 12 | M15: 103 | N15: $57.50 | O15: $36.93 | P15: $20.75 | V15: $57.68 | W15: $0.18 | X15: =IF(W15>0, "Overage", IF(W15<0, "Shortage", "")) -> Overage | Z15: 120 | AA15: 0 | AB15: 100.00% | AC15: 2017-04-19 | AD15: Wednesday | AE15: 7 | AI15: 7 | AJ15: $14.00 | AO15: $4.00 | AP15: $4.00 | AR15: $8.00 | AS15: 2 | AT15: 4 | AV15: $12.00 | AW15: $0.00 | AX15: $20.00 | AY15: $6.00 | AZ15: Overage | BB15: 7 | BC15: 0 | BD15: 100.00% | BE15: 275
A16: 2017-04-20 | B16: Thursday | C16: 1 | E16: 39 | F16: 19 | G16: 1 | H16: 6 | I16: 20 | L16: 12 | M16: 86 | N16: $49.00 | O16: $21.39 | R16: $26.50 | V16: $47.89 | W16: ($1.11) | X16: =IF(W16>0, "Overage", IF(W16<0, "Shortage", "")) -> Shortage | Y16: Passanger short Driping Change | Z16: 120 | AA16: 0 | AB16: 100.00% | AC16: 2017-04-20 | AD16: Thursday | AE16: 13 | AI16: 13 | AJ16: $26.00 | AO16: $6.00 | AP16: $10.00 | AR16: $16.00 | AS16: 2 | AT16: 3 | AV16: $10.00 | AW16: $0.00 | AX16: $26.00 | AY16: $0.00 | BB16: 13 | BC16: 0 | BD16: 100.00% | BE16: 374
A17: 2017-04-21 | B17: Friday | C17: 2 | E17: 48 | F17: 16 | G17: 1 | H17: 12 | I17: 21 | L17: 19 | M17: 100 | N17: $56.50 | O17: $29.47 | P17: $27.15 | V17: $56.62 | W17: $0.12 | X17: Overage | Z17: 120 | AA17: 0 | AB17: 100.00% | AC17: 2017-04-21 | AD17: Friday | AE17: 14 | AI17: 14 | AJ17: $28.00 | AO17: $6.00 | AP17: $14.00 | AR17: $20.00 | AS17: 3 | AT17: 2 | AV17: $10.00 | AW17: $0.00 | AX17: $30.00 | AY17: $2.00 | AZ17: =IF(AY17>0, "Overage", IF(AY17<0, "Shortage", "")) -> Overage | BB17: 14 | BC17: 0 | BD17: 100.00% | BE17: =BE16+M17+AI17 -> 488
A18: 2017-04-24 | B18: Monday | C18: 3 | E18: 32 | F18: 17 | G18: 3 | H18: 2 | I18: 13 | L18: 6 | M18: 70 | N18: $42.00 | O18: $18.39 | P18: $24.83 | V18: $43.22 | W18: $1.22 | X18: =IF(W18>0, "Overage", IF(W18<0, "Shortage", "")) -> Overage | Z18: 120 | AA18: 0 | AB18: 100.00% | AC18: 2017-04-24 | AD18: Monday | AE18: 14 | AI18: 14 | AJ18: $28.00 | AO18: $6.00 | AP18: $10.00 | AR18: $16.00 | AS18: 6 | AT18: 2 | AV18: $16.00 | AW18: $0.00 | AX18: $32.00 | AY18: $4.00 | AZ18: =IF(AY18>0, "Overage", IF(AY18<0, "Shortage", "")) -> Overage | BB18: 14 | BC18: 0 | BD18: 100.00% | BE18: =M18+AI18 -> 84
A19: 2017-04-25 | B19: Tuesday | C19: 1 | E19: 41 | F19: 5 | G19: 1 | H19: 9 | I19: 13 | L19: 3 | M19: 70 | N19: $44.00 | O19: $22.05 | P19: $24.00 | V19: $46.05 | W19: $2.05 | X19: =IF(W19>0, "Overage", IF(W19<0, "Shortage", "")) -> Overage | Z19: 120 | AA19: 0 | AB19: 100.00% | AC19: 2017-04-25 | AD19: Tuesday | AE19: 13 | AI19: 13 | AJ19: $26.00 | AO19: $2.00 | AP19: $20.00 | AR19: $22.00 | AS19: 2 | AT19: 3 | AV19: $10.00 | AW19: $0.00 | AX19: $32.00 | AY19: $6.00 | AZ19: =IF(AY19>0, "Overage", IF(AY19<0, "Shortage", "")) -> Overage | BB19: 13 | BC19: 0 | BD19: 100.00% | BE19: 167
A20: 2017-04-26 | B20: Wednesday | C20: 7 | E20: 35 | F20: 17 | H20: 6 | I20: 16 | J20: 1 | L20: 12 | M20: 82 | N20: $43.50 | O20: $20.90 | P20: $20.45 | V20: $41.35 | W20: ($2.15) | X20: Shortage | Y20: Passanger short Driping Change | Z20: 120 | AA20: 0 | AB20: 100.00% | AC20: 2017-04-26 | AD20: Wednesday | AE20: 9 | AI20: 9 | AJ20: $18.00 | AO20: $4.00 | AP20: $4.00 | AR20: $8.00 | AS20: 2 | AT20: 3 | AV20: $10.00 | AW20: $0.00 | AX20: $18.00 | AY20: $0.00 | BB20: 9 | BC20: 0 | BD20: 100.00% | BE20: 258
A21: 2017-04-27 | B21: Thursday | C21: 7 | E21: 40 | F21: 5 | G21: 1 | H21: 6 | I21: 15 | L21: 4 | M21: 74 | N21: $43.00 | O21: $32.71 | P21: $10.89 | V21: $43.60 | W21: $0.60 | X21: =IF(W21>0, "Overage", IF(W21<0, "Shortage", "")) -> Overage | Z21: 120 | AA21: 0 | AB21: 100.00% | AC21: 2017-04-27 | AD21: Thursday | AE21: 10 | AI21: 10 | AJ21: $20.00 | AO21: $6.00 | AP21: $10.00 | AR21: $16.00 | AT21: 4 | AV21: $8.00 | AW21: $0.00 | AX21: $24.00 | AY21: $4.00 | AZ21: =IF(AY21>0, "Overage", IF(AY21<0, "Shortage", "")) -> Overage | BB21: 10 | BC21: 0 | BD21: 100.00% | BE21: 342
A22: 2017-04-28 | B22: Friday | C22: 7 | E22: 39 | F22: 14 | H22: 6 | I22: 17 | L22: 12 | M22: 83 | N22: $46.00 | O22: $16.10 | P22: $30.25 | V22: $46.35 | W22: $0.35 | X22: =IF(W22>0, "Overage", IF(W22<0, "Shortage", "")) -> Overage | Z22: 120 | AA22: 0 | AB22: 100.00% | AC22: 2017-04-28 | AD22: Friday | AE22: 10 | AI22: 10 | AJ22: $20.00 | AO22: $2.00 | AP22: $8.00 | AR22: $10.00 | AS22: 2 | AT22: 2 | AV22: $8.00 | AW22: $0.00 | AX22: $18.00 | AY22: ($2.00) | AZ22: =IF(AY22>0, "Overage", IF(AY22<0, "Shortage", "")) -> Shortage | BB22: 10 | BC22: 0 | BD22: 100.00% | BE22: 435
A23: 2017-03-01 | M23: 0 | N23: $0.00 | O23: $0.00 | P23: $0.00 | Q23: $0.00 | R23: $0.00 | S23: $0.00 | T23: $0.00 | U23: $0.00 | V23: $0.00 | W23: $0.00 | Z23: 120 | AA23: 0 | AB23: 100.00% | AC23: =A23 -> 2017-03-01 | AD23: Wednesday | AI23: 0 | AJ23: $0.00 | AK23: $0.00 | AL23: $0.00 | AM23: $0.00 | AN23: $0.00 | AO23: $0.00 | AP23: $0.00 | AQ23: $0.00 | AR23: $0.00 | AV23: $0.00 | AW23: $0.00 | AX23: $0.00 | AY23: $0.00 | BB23: =AE23 -> 0 | BC23: 0 | BD23: 100.00%
A24: 2017-03-02 | M24: 0 | N24: $0.00 | O24: $0.00 | P24: $0.00 | Q24: $0.00 | R24: $0.00 | S24: $0.00 | T24: $0.00 | U24: $0.00 | V24: $0.00 | W24: $0.00 | Z24: 120 | AA24: 0 | AB24: 100.00% | AC24: 2017-03-02 | AD24: Thursday | AI24: 0 | AJ24: $0.00 | AK24: $0.00 | AL24: $0.00 | AM24: $0.00 | AN24: $0.00 | AO24: $0.00 | AP24: $0.00 | AQ24: $0.00 | AR24: $0.00 | AV24: $0.00 | AW24: $0.00 | AX24: $0.00 | AY24: $0.00 | BB24: 0 | BC24: 0 | BD24: 100.00%
A25: 2017-03-03 | M25: 0 | N25: $0.00 | O25: $0.00 | P25: $0.00 | Q25: $0.00 | R25: $0.00 | S25: $0.00 | T25: $0.00 | U25: $0.00 | V25: $0.00 | W25: $0.00 | Z25: 120 | AA25: 0 | AB25: 100.00% | AC25: 2017-03-03 | AD25: Friday | AI25: 0 | AJ25: $0.00 | AK25: $0.00 | AL25: $0.00 | AM25: $0.00 | AN25: $0.00 | AO25: $0.00 | AP25: $0.00 | AQ25: $0.00 | AR25: $0.00 | AV25: $0.00 | AW25: $0.00 | AX25: $0.00 | AY25: $0.00 | BB25: 0 | BC25: 0 | BD25: 100.00%
B26: EOM Totals: | C26: =SUM(C3:C25) -> 85 | D26: 0 | E26: 796 | F26: 256 | G26: 37 | H26: 137 | I26: 352 | J26: 2 | K26: 0 | L26: 204 | M26: 1665 | N26: $942.50 | V26: =SUM(V3:V25) -> $946.48 | W26: =V26-N26 -> $3.98 | X26: Overage | Z26: 2400 | AA26: =SUM(AA3:AA25) -> 0 | AB26: 100.00% | AD26: EOM Totals: | AE26: =SUM(AE3:AE25) -> 239 | AF26: 1 | AG26: 0 | AH26: 0 | AI26: 239 | AJ26: $480.00 | AR26: =SUM(AR3:AR25) -> $336.00 | AS26: 37 | AT26: 40 | AU26: 0 | AV26: =SUM(AV3:AV25) -> $154.00 | AW26: $0.00 | AX26: $490.00 | AY26: $10.00 | AZ26: Overage | BB26: =SUM(BB3:BB25) -> 239 | BC26: =SUM(BC3:BC25) -> 0 | BD26: 100.00% | BE26: 1905
A27: Manager Signature: | C27: Wayne Robison | W27: =SUM(W3:W25) -> $3.98 | X27: Overage | AY27: =SUM(AY3:AY25) -> $10.00 | AZ27: Overage | BA27: Wayne Robison
A28: Date: | B28: 2017-04-30 | BA28: Wayne Robison
AN29: 11232
